bitfinex/quotes_ETHUSD_20250925
["timestamp","ask_amount","ask_price","bid_price","bid_amount"]
[1758840106349,13.29775329,3911.2,3911.1,0.002]
[1758840106590,16.55591336,3911.2,3911.1,0.002]
[1758840107471,16.30761336,3911.2,3911.1,0.002]
[1758840107677,9.71324339,3911.2,3911.1,0.002]
[1758840108168,16.90324339,3911.2,3911.1,0.002]
[1758840108376,16.65494339,3911.2,3911.1,0.002]
[1758840108773,11.86984339,3911.2,3911.1,0.002]
[1758840109003,14.6482,3911.2,3911.1,3.23332544]
[1758840109207,14.521,3911.2,3911.1,3.23332544]
[1758840110961,14.521,3911.2,3911.1,2.79532544]
[1758840111165,14.521,3911.2,3911.1,3.23332544]
[1758840112285,14.521,3911.2,3911.1,0.002]
[1758840112692,16.41441099,3911.2,3911.1,0.002]
[1758840113102,9.22441099,3911.2,3911.1,0.002]
[1758840115467,7.329,3911.2,3911.1,3.23332544]
[1758840117096,3.0,3911.2,3911.1,3.23332544]
[1758840117263,7.33,3911.2,3911.1,3.23332544]
[1758840117827,7.33,3911.2,3911.1,2.55882544]
[1758840118089,7.33,3911.2,3911.1,3.23332544]
[1758840119703,7.33,3911.2,3911.1,0.002]
[1758840120000,8.50441099,3911.2,3911.1,0.002]
[1758840120201,7.33,3911.2,3911.1,2.79532544]
[1758840121000,7.33,3911.2,3911.1,0.2385]
[1758840121720,7.33,3911.2,3911.1,0.002]
[1758840123397,7.33,3911.2,3911.1,2.55882544]
[1758840124208,7.33,3911.2,3911.1,2.80082544]
[1758840126520,7.33,3911.2,3911.1,2.55882544]
[1758840129839,7.33,3911.2,3911.1,0.002]
[1758840130039,7.33,3911.2,3911.1,2.55882544]
[1758840130539,7.33,3911.2,3911.1,0.002]
[1758840131505,8.0085,3911.2,3911.1,0.002]
[1758840131734,9.96976099,3911.2,3911.1,0.002]
[1758840131941,9.74086099,3911.2,3911.1,0.002]
[1758840132431,9.29126099,3911.2,3911.1,0.002]
[1758840133219,17.15976099,3911.2,3911.1,0.002]
[1758840133825,16.93086099,3911.2,3911.1,0.002]
[1758840137263,19.71652106,3911.2,3911.1,0.002]
[1758840137573,9.84293148,3910.8,3910.7,0.002]
[1758840137735,24.74563391,3910.8,3910.7,0.002]
[1758840137933,25.42413391,3910.8,3910.7,0.002]
[1758840138960,11.44270243,3910.8,3910.7,0.002]
[1758840139260,14.519,3910.8,3910.7,0.002]
[1758840139565,7.329,3910.8,3910.7,0.002]
[1758840139751,10.55752158,3910.8,3910.7,0.002]
[1758840141274,10.55752158,3910.8,3910.3,0.002]
[1758840141477,9.84319304,3910.4,3910.3,0.002]
[1758840141763,15.77938269,3910.4,3910.3,0.002]
[1758840141967,16.45088269,3910.4,3910.3,0.002]
[1758840144772,16.85201125,3910.4,3910.3,0.002]
[1758840152475,16.45088269,3910.4,3910.3,0.002]
[1758840154581,17.31402141,3910.4,3910.3,0.002]
[1758840155581,10.19,3910.4,3910.3,0.002]
[1758840155815,14.52,3910.4,3910.3,0.6828]
[1758840156131,2.131,3910.9,3910.4,2.55728314]
[1758840156279,2.131,3910.9,3910.8,2.55702158]
[1758840156483,9.461,3910.9,3910.8,3.23782158]
[1758840156707,6.461,3910.9,3910.8,3.23782158]
[1758840156985,9.461,3910.9,3910.8,0.6808]
[1758840158107,9.461,3910.9,3910.8,3.23782158]
[1758840158981,9.461,3910.9,3910.8,0.6808]
[1758840159614,9.461,3910.9,3910.8,3.23782158]
[1758840160513,7.33,3910.9,3910.8,3.23782158]
[1758840161714,14.52,3910.9,3910.8,0.6808]
[1758840162616,14.52,3910.9,3910.8,3.23782158]
[1758840163532,14.52,3910.9,3910.8,0.6808]
[1758840168799,14.521,3910.9,3910.8,0.2294]
[1758840170013,14.521,3910.9,3910.8,0.6884]
[1758840171232,3.0,3910.8,3910.6,0.1272]
[1758840171430,7.328,3910.7,3910.6,0.3549]
[1758840171628,7.328,3910.7,3910.6,0.1272]
[1758840171942,7.328,3910.7,3910.6,0.5862]
[1758840172138,7.328,3910.7,3910.6,0.8139]
[1758840172340,7.328,3910.7,3910.6,3.37105235]
[1758840173442,3.0,3910.6,3910.4,0.2277]
[1758840173640,7.328,3910.5,3910.4,3.01626031]
[1758840173830,3.0,3910.5,3910.4,3.01626031]
[1758840174141,7.328,3910.5,3910.4,3.01626031]
[1758840174342,7.328,3910.5,3910.4,3.24396031]
[1758840176451,7.19,3910.7,3910.6,2.55715235]
[1758840176654,7.19,3910.7,3910.6,3.24385235]
[1758840176857,7.19,3910.7,3910.6,3.37105235]
[1758840179561,0.001,3910.9,3910.8,2.55702158]
[1758840179927,0.001,3910.9,3910.8,3.37092158]
[1758840180323,0.001,3910.9,3910.8,3.96372897]
[1758840180865,0.001,3910.9,3910.8,3.98929918]
[1758840181022,0.001,3910.9,3910.8,8.31629918]
[1758840181226,0.001,3910.9,3910.8,8.29072897]
[1758840181447,0.001,3910.9,3910.8,8.39324615]
[1758840182782,0.001,3910.9,3910.8,3.60724615]
[1758840182984,0.001,3910.9,3910.8,2.78673876]
[1758840183600,0.4477,3910.9,3910.8,2.68422158]
[1758840184506,0.001,3910.9,3910.8,2.68422158]
[1758840185297,0.4477,3910.9,3910.8,2.68422158]
[1758840185498,0.4477,3910.9,3910.8,2.55702158]
[1758840185701,0.6774,3910.9,3910.8,2.55702158]
[1758840186384,0.4477,3910.9,3910.8,2.55702158]
[1758840186778,0.001,3910.9,3910.8,2.55702158]
[1758840189021,4.327,3910.9,3910.8,2.55702158]
[1758840189676,5.0034,3910.9,3910.7,2.55707452]
[1758840190004,5.0034,3910.9,3910.6,2.68432587]
[1758840190210,5.0034,3910.9,3910.6,2.68435084]
[1758840190719,5.0034,3910.9,3910.8,2.55702158]
[1758840191288,4.7737,3910.9,3910.8,2.55702158]
[1758840191489,4.7737,3910.9,3910.7,2.55708407]
[1758840191689,5.0034,3910.9,3910.7,2.55708407]
[1758840192372,5.0034,3910.9,3910.6,0.1272]
[1758840192373,4.84016,3910.9,3910.6,0.1272]
[1758840192573,3.6764,3910.8,3910.4,2.55723214]
[1758840192778,3.6764,3910.8,3910.3,0.002]
[1758840193005,7.326,3910.7,3910.6,2.55709309]
[1758840193208,3.0,3910.6,3910.3,2.55933993]
[1758840193397,5.31419267,3910.7,3910.3,0.002]
[1758840193604,0.6764,3910.6,3910.3,0.002]
[1758840193801,3.0,3910.4,3910.3,0.002]
[1758840194182,3.6764,3910.4,3910.3,0.002]
[1758840194784,5.82208413,3910.4,3910.3,0.002]
[1758840195015,13.01208413,3910.4,3910.3,0.002]
[1758840195221,16.66168413,3910.4,3910.3,0.002]
[1758840195409,16.66168413,3910.4,3910.3,2.55934854]
[1758840195918,14.516,3910.4,3910.3,2.55934854]
[1758840196901,14.516,3910.4,3910.3,0.002]
[1758840197117,15.1924,3910.4,3910.3,0.002]
[1758840197323,14.9627,3910.4,3910.3,0.002]
[1758840197705,14.9627,3910.4,3910.3,2.55934854]
[1758840198014,14.516,3910.4,3910.3,2.55934854]
[1758840198318,7.326,3910.4,3910.3,2.55934854]
[1758840198524,3.001,3910.9,3910.4,2.55728314]
[1758840198687,3.0,3910.7,3910.6,2.55715235]
[1758840198892,0.1272,3910.8,3910.3,0.234]
[1758840199093,4.326,3910.7,3910.6,2.55711141]
[1758840199425,4.326,3910.7,3910.6,2.78911141]
[1758840199925,8.45842,3910.7,3910.3,0.002]
[1758840200122,3.0,3910.5,3910.3,0.002]
[1758840200322,7.325,3910.4,3910.3,0.002]
[1758840200529,8.012,3910.4,3910.3,0.002]
[1758840201032,13.16104862,3910.4,3910.3,0.002]
[1758840201326,15.04584733,3910.4,3910.3,0.002]
[1758840205430,19.73413047,3910.4,3910.3,0.002]
[1758840209942,20.13522666,3910.4,3910.3,0.002]
[1758840210343,20.13522666,3910.4,3910.1,0.02]
[1758840210344,2.55741394,3910.2,3910.1,0.02]
[1758840210520,12.40057619,3910.2,3910.1,0.02]
[1758840210729,13.08757619,3910.2,3910.1,0.02]
[1758840213121,15.21857619,3910.2,3910.1,0.02]
[1758840214659,19.50974075,3910.2,3910.1,0.02]
[1758840218426,2.55772957,3909.8,3909.5,0.002]
[1758840218734,9.84897098,3909.6,3909.5,0.002]
[1758840219240,10.53597098,3909.6,3909.5,0.002]
[1758840220029,10.66171546,3909.6,3909.5,0.002]
[1758840220566,10.43581546,3909.6,3909.5,0.002]
[1758840220732,12.43368866,3909.6,3909.5,0.002]
[1758840221574,19.62368866,3909.6,3909.5,0.002]
[1758840223343,19.62368866,3909.6,3909.1,0.022]
[1758840223344,9.8492327,3909.2,3909.1,0.022]
[1758840223543,16.3062327,3909.2,3909.1,0.022]
[1758840223748,19.13544217,3909.2,3909.1,0.022]
[1758840223958,2.55832992,3908.8,3908.7,0.002]
[1758840224274,16.30649448,3908.8,3908.7,0.002]
[1758840225367,16.70775513,3908.8,3908.7,0.002]
[1758840225557,18.3718499,3908.8,3908.7,0.002]
[1758840225765,15.81351998,3908.8,3908.7,0.002]
[1758840226268,18.3718499,3908.8,3908.7,0.002]
[1758840226470,15.81351998,3908.8,3908.7,0.002]
[1758840228740,3.0,3908.8,3908.7,3.25219537]
[1758840228960,7.325,3908.8,3908.7,3.25219537]
[1758840229475,14.515,3908.8,3908.7,3.25219537]
[1758840231376,10.19,3908.8,3908.7,3.25219537]
[1758840231678,14.515,3908.8,3908.7,3.25219537]
[1758840234579,11.515,3908.8,3908.7,3.25219537]
[1758840234746,7.19,3908.8,3908.7,3.84854069]
[1758840235988,7.19,3908.9,3908.8,2.55832992]
[1758840236152,7.19,3908.9,3908.8,3.25012992]
[1758840236358,7.19,3908.9,3908.8,3.37732992]
[1758840238697,7.19,3908.9,3908.8,2.92372992]
[1758840238997,11.514,3908.9,3908.8,3.37732992]
[1758840239365,15.80516456,3908.9,3908.8,2.55832992]
[1758840239999,15.80516456,3908.9,3908.8,2.79652992]
[1758840240371,11.514,3908.9,3908.8,3.25012992]
[1758840240571,7.19,3908.9,3908.8,4.21678293]
[1758840241002,4.323,3909.0,3908.9,2.55826447]
[1758840241302,4.323,3909.0,3908.9,3.25006447]
[1758840242087,4.323,3909.0,3908.9,2.55826447]
[1758840242970,4.323,3909.0,3908.9,2.79646447]
[1758840243507,4.323,3909.0,3908.9,2.55826447]
[1758840244806,11.513,3909.0,3908.9,2.55826447]
[1758840247099,7.19,3909.0,3908.9,2.80106447]
[1758840247398,11.513,3909.0,3908.9,2.80106447]
[1758840249016,11.513,3909.0,3908.9,2.55826447]
[1758840251983,11.513,3909.0,3908.9,2.80106447]
[1758840252498,11.513,3909.0,3908.7,0.2448]
[1758840252696,11.945,3909.0,3908.7,0.002]
[1758840252874,12.17,3909.0,3908.9,2.55826447]
[1758840253301,11.945,3909.0,3908.8,2.55832574]
[1758840253494,12.17,3909.0,3908.7,0.002]
[1758840253690,11.945,3909.0,3908.7,0.002]
[1758840254010,4.323,3909.0,3908.9,2.55826447]
[1758840254578,7.323,3909.0,3908.7,0.002]
[1758840254812,0.432,3908.9,3908.7,0.002]
[1758840255113,3.0,3909.0,3908.9,2.55826447]
[1758840255314,7.322,3909.0,3908.9,2.55826447]
[1758840256689,7.322,3909.0,3908.8,2.55832271]
[1758840256885,7.322,3909.0,3908.9,2.55826447]
[1758840257710,7.322,3909.0,3908.8,2.5583024]
[1758840258485,7.322,3909.0,3908.7,2.56036884]
[1758840258680,0.7107,3908.9,3908.7,2.56036884]
[1758840258984,5.0317,3908.8,3908.7,0.002]
[1758840259726,8.0317,3908.8,3908.7,0.002]
[1758840260712,7.7842,3908.8,3908.7,0.002]
[1758840261523,7.7842,3908.8,3908.7,2.56039537]
[1758840261707,7.321,3908.8,3908.7,2.56039537]
[1758840263798,11.61216456,3908.8,3908.7,2.56039537]
[1758840263985,11.61216456,3908.8,3908.7,0.002]
[1758840264614,11.61216456,3908.8,3908.7,2.56039537]
[1758840265824,11.61216456,3908.8,3908.7,0.002]
[1758840267313,12.93092093,3908.8,3908.7,0.002]
[1758840268018,13.64162093,3908.8,3908.7,0.002]
[1758840268838,13.39412093,3908.8,3908.7,0.002]
[1758840269037,12.93092093,3908.8,3908.7,0.002]
[1758840269211,12.93092093,3908.8,3908.7,2.56039537]
[1758840270135,12.93092093,3908.8,3908.7,0.002]
[1758840270541,12.93092093,3908.8,3908.7,2.56039537]
[1758840271339,12.93092093,3908.8,3908.7,0.002]
[1758840272143,12.93092093,3908.8,3908.7,2.56039537]
[1758840272642,12.93092093,3908.8,3908.7,0.002]
[1758840276364,12.93092093,3908.8,3908.7,2.56039537]
[1758840276543,7.321,3908.8,3908.7,2.56039537]
[1758840276853,7.321,3908.8,3908.7,0.002]
[1758840277563,11.511,3908.8,3908.7,0.002]
[1758840279253,14.511,3908.8,3908.7,2.56039537]
[1758840279840,7.19,3908.8,3908.7,3.22569537]
[1758840280035,7.191,3909.1,3909.0,2.55819902]
[1758840280346,7.191,3909.1,3909.0,3.22349902]
[1758840281157,0.001,3909.1,3909.0,3.22349902]
[1758840282044,0.001,3909.1,3909.0,7.54249902]
[1758840282243,0.001,3909.1,3909.0,9.44707466]
[1758840283175,0.001,3909.1,3909.0,11.57907466]
[1758840283970,0.74010392,3910.2,3910.1,2.55747934]
[1758840284642,0.74010392,3910.2,3909.7,2.55769299]
[1758840284848,0.7107,3910.1,3909.2,0.6653]
[1758840285085,0.7107,3910.1,3909.4,2.55793727]
[1758840285398,0.7107,3910.1,3909.6,2.55776431]
[1758840285561,0.7107,3910.1,3909.4,2.55793727]
[1758840285562,0.2475,3910.1,3909.7,2.55773925]
[1758840285746,0.4632,3910.0,3909.7,2.55773925]
[1758840285948,3.0,3909.8,3909.7,2.55773925]
[1758840286389,3.0,3909.8,3909.6,2.55778634]
[1758840286556,0.7107,3909.7,3909.0,0.76922781]
[1758840286760,3.0,3909.5,3909.1,2.55808817]
[1758840286960,0.4632,3909.4,3909.1,2.55807687]
[1758840287159,0.4632,3909.4,3909.2,2.5580478]
[1758840287359,3.0,3909.5,3908.8,0.4359]
[1758840287564,3.0,3909.5,3909.3,2.55799424]
[1758840288256,3.0,3909.5,3909.4,2.55793727]
[1758840288460,7.317,3909.5,3909.3,2.5579894]
[1758840288663,7.317,3909.5,3909.3,2.55797888]
[1758840289199,7.317,3909.5,3909.0,0.4453]
[1758840289485,7.317,3909.5,3909.4,2.55793727]
[1758840289792,7.317,3909.5,3909.2,2.55802815]
[1758840289999,7.317,3909.5,3909.3,2.55799305]
[1758840290651,7.317,3909.5,3909.1,2.55813358]
[1758840291282,7.317,3909.5,3909.3,2.55798119]
[1758840291585,7.317,3909.5,3909.4,2.55793727]
[1758840292891,7.317,3909.5,3909.3,2.55799044]
[1758840293088,0.25533399,3909.6,3909.0,0.6742]
[1758840293382,4.317,3909.4,3909.3,2.55800271]
[1758840297392,4.317,3909.4,3908.9,0.1272]
[1758840297690,4.317,3909.4,3909.3,2.55800271]
[1758840297889,4.317,3909.4,3908.9,0.3561]
[1758840298191,4.7487,3909.4,3909.3,2.55800271]
[1758840298394,4.317,3909.4,3909.3,2.55800271]
[1758840300465,4.317,3909.4,3909.3,3.23220271]
[1758840302277,4.7487,3909.4,3909.1,0.002]
[1758840302481,0.4317,3909.3,3909.2,2.55806814]
[1758840302995,4.317,3909.4,3909.3,2.55800271]
[1758840304194,11.507,3909.4,3909.3,2.55800271]
[1758840304692,11.507,3909.4,3909.1,2.56012389]
[1758840305006,11.9733,3909.4,3909.2,2.55805418]
[1758840305165,0.4663,3909.3,3909.2,2.55805418]
[1758840305897,0.4663,3909.3,3909.1,0.002]
[1758840306194,11.507,3909.4,3909.1,2.5601274]
[1758840306393,3.7002,3909.3,3909.1,0.002]
[1758840306596,7.4412,3909.2,3909.1,0.002]
[1758840306907,17.88946814,3909.2,3909.1,0.002]
[1758840307593,11.0174,3909.2,3909.1,0.002]
[1758840307794,19.22461251,3909.2,3909.1,0.002]
[1758840307969,21.78268065,3909.2,3909.1,0.002]
[1758840308372,19.22461251,3909.2,3909.1,0.002]
[1758840308782,21.78268065,3909.2,3909.1,0.002]
[1758840310485,21.78268065,3909.2,3908.7,0.002]
[1758840310486,5.55832992,3908.8,3908.7,0.002]
[1758840310690,9.87232992,3908.8,3908.7,0.002]
[1758840310993,10.57252992,3908.8,3908.7,0.002]
[1758840311295,6.25852992,3908.8,3908.7,0.002]
[1758840311502,12.70452992,3908.8,3908.7,0.002]
[1758840311668,5.32493666,3908.8,3908.7,0.002]
[1758840311868,9.87232992,3908.8,3908.7,0.002]
[1758840312467,10.33862992,3908.8,3908.7,0.002]
[1758840315721,17.52862992,3908.8,3908.7,0.002]
[1758840315912,14.9703,3908.8,3908.7,0.002]
[1758840316227,17.52862992,3908.8,3908.7,0.002]
[1758840316391,19.7614899,3908.8,3908.7,0.002]
[1758840317521,19.2951899,3908.8,3908.7,0.002]
[1758840317723,25.14668958,3908.8,3908.7,0.002]
[1758840317923,25.14668958,3908.8,3908.3,0.002]
[1758840317924,6.35039537,3908.7,3908.3,0.002]
[1758840318142,5.55859175,3908.4,3908.3,0.002]
[1758840318294,9.87159175,3908.4,3908.3,0.002]
[1758840318502,5.55872268,3908.2,3908.1,0.02]
[1758840318693,5.55872268,3908.2,3907.9,0.002]
[1758840318694,10.71015331,3908.0,3907.9,0.002]
[1758840318892,17.15515331,3908.0,3907.9,0.002]
[1758840319094,19.89159091,3908.0,3907.9,0.002]
[1758840319316,20.29296662,3908.0,3907.9,0.002]
[1758840321935,13.84796662,3908.0,3907.9,0.002]
[1758840322140,19.89259091,3908.0,3907.9,0.002]
[1758840324835,20.68459091,3908.0,3907.9,0.002]
[1758840325011,20.68459091,3908.0,3907.1,0.02]
[1758840325012,7.71067723,3907.2,3907.1,0.02]
[1758840325340,7.71067723,3907.2,3906.1,0.249]
[1758840325341,3.0,3907.1,3906.1,0.249]
[1758840325542,2.56003276,3906.2,3906.1,0.249]
[1758840325740,9.87403276,3906.2,3906.1,0.249]
[1758840326035,9.87403276,3906.2,3905.2,0.48603429]
[1758840326036,10.56953276,3906.2,3905.2,0.48603429]
[1758840326250,3.0,3905.8,3905.2,1.16933429]
[1758840326437,3.0,3905.6,3905.2,1.16933429]
[1758840326629,4.314,3905.5,3905.3,0.6833]
[1758840326939,7.314,3905.5,3905.4,0.6833]
[1758840327340,7.314,3905.5,3905.4,0.229]
[1758840327932,3.0,3905.4,3905.2,1.16933429]
[1758840328131,3.0,3905.4,3905.2,0.94033429]
[1758840328132,7.314,3905.3,3905.2,0.94033429]
[1758840328350,7.314,3905.3,3905.2,0.48603429]
[1758840328550,9.87462274,3905.3,3905.2,0.48603429]
[1758840329425,15.02592242,3905.3,3905.2,0.48603429]
[1758840329639,16.28199522,3905.3,3905.2,0.48603429]
[1758840330334,16.97749522,3905.3,3905.2,0.48603429]
[1758840331991,2.56125397,3904.4,3904.1,0.02]
[1758840332162,0.51223449,3904.4,3904.1,0.02]
[1758840332460,5.56193477,3903.3,3903.2,0.48603429]
[1758840332760,13.82938137,3903.3,3903.2,0.48603429]
[1758840332958,5.5620004,3903.2,3902.8,0.003]
[1758840333139,9.28482069,3903.2,3902.8,0.003]
[1758840333335,9.98032069,3903.2,3902.8,0.003]
[1758840333537,10.77232069,3903.2,3902.8,0.003]
[1758840334360,6.35419734,3902.9,3902.8,0.003]
[1758840334657,14.17564394,3902.9,3902.8,0.003]
[1758840334858,6.35426299,3902.8,3902.7,0.003]
[1758840335024,6.35432864,3902.7,3902.6,0.003]
[1758840335228,8.93632864,3902.7,3902.6,0.003]
[1758840335458,12.80332864,3902.7,3902.6,0.003]
[1758840335858,3.792,3902.6,3902.0,0.205]
[1758840336062,3.0,3902.4,3901.4,2.56317458]
[1758840336265,2.5629317,3901.8,3900.8,0.4543]
[1758840336466,3.0,3901.4,3900.8,0.4543]
[1758840336639,3.0,3901.2,3900.8,0.4543]
[1758840336843,3.0,3901.6,3900.8,0.4543]
[1758840337175,3.0,3901.4,3900.8,0.4543]
[1758840337335,3.0,3901.2,3900.3,0.4543]
[1758840337534,6.87931385,3901.2,3900.3,0.4543]
[1758840337777,7.32731385,3901.2,3900.3,0.4543]
[1758840337933,4.764,3901.2,3900.5,0.229]
[1758840338248,5.648163,3901.2,3900.5,0.229]
[1758840338462,8.21147685,3901.2,3900.5,0.229]
[1758840338644,7.89422259,3901.2,3900.5,0.229]
[1758840338848,10.89422259,3901.2,3900.5,0.229]
[1758840339380,8.33090874,3901.2,3900.5,0.229]
[1758840339685,10.89422259,3901.2,3900.5,0.229]
[1758840340041,10.89422259,3901.2,3900.8,0.229]
[1758840340042,3.13074574,3901.2,3900.8,0.229]
[1758840340353,3.5327903,3901.2,3901.1,0.7033]
[1758840340552,9.58374574,3901.2,3901.1,0.7033]
[1758840341881,0.13074574,3901.2,3901.1,0.7033]
[1758840342036,6.454,3901.2,3901.1,0.02]
[1758840342241,14.56761197,3901.2,3901.1,0.02]
[1758840342639,14.69759639,3901.2,3901.1,0.02]
[1758840344283,4.16919712,3901.1,3900.1,0.02]
[1758840344579,5.56397107,3900.2,3900.1,0.02]
[1758840344781,9.461,3900.2,3900.1,0.02]
[1758840345149,3.0,3900.2,3900.1,0.7033]
[1758840345347,7.073,3900.2,3900.1,0.7033]
[1758840345567,9.469,3900.2,3900.1,0.7033]
[1758840346179,6.469,3900.2,3900.1,3.26733681]
[1758840346381,2.136,3900.5,3900.1,1.42425833]
[1758840346581,4.338,3900.4,3900.2,3.2472482]
[1758840346785,4.338,3900.4,3900.3,0.8113]
[1758840347004,7.338,3900.4,3900.3,3.37520534]
[1758840347887,7.338,3900.4,3900.3,0.8113]
[1758840348196,3.0,3900.3,3900.1,0.2463]
[1758840348480,7.337,3900.2,3900.1,0.02]
[1758840348668,10.72097107,3900.2,3900.1,0.02]
[1758840348870,11.50997107,3900.2,3900.1,0.02]
[1758840351289,7.17597107,3900.2,3900.1,0.02]
[1758840351597,14.16853447,3900.2,3900.1,0.02]
[1758840351758,15.91970736,3900.2,3900.1,0.02]
[1758840353058,9.44070736,3900.2,3900.1,0.02]
[1758840353258,15.91870736,3900.2,3900.1,0.02]
[1758840354359,6.35603681,3900.1,3900.0,0.09816638]
[1758840354663,7.42523393,3900.1,3900.0,0.09816638]
[1758840354989,5.56410256,3900.0,3899.9,0.002]
[1758840355207,6.35610256,3900.0,3899.9,0.002]
[1758840355393,12.83510256,3900.0,3899.9,0.002]
[1758840355586,3.792,3900.0,3899.9,0.002]
[1758840355796,5.929,3900.0,3899.9,0.2283]
[1758840356101,10.95547533,3900.0,3899.9,0.2283]
[1758840356601,14.13977501,3900.0,3899.9,0.002]
[1758840356756,0.792,3899.6,3899.5,0.002]
[1758840356959,12.84136557,3899.6,3899.5,0.002]
[1758840357160,14.46454936,3899.6,3899.5,0.002]
[1758840357390,15.55879034,3899.6,3899.5,0.002]
[1758840357705,12.30242477,3899.6,3899.5,0.002]
[1758840358208,10.16542477,3899.6,3899.5,0.002]
[1758840358499,12.30242477,3899.6,3899.5,0.002]
[1758840359697,5.53924098,3899.6,3899.5,0.002]
[1758840359990,9.88724098,3899.6,3899.5,0.002]
[1758840360190,12.45160655,3899.6,3899.5,0.002]
[1758840361503,9.88724098,3899.6,3899.5,0.002]
[1758840361861,3.0,3899.6,3899.5,0.002]
[1758840362073,9.483,3899.6,3899.5,0.2283]
[1758840362278,9.483,3899.6,3899.5,0.7032]
[1758840362478,9.483,3899.6,3899.5,0.2283]
[1758840362719,9.483,3899.6,3899.5,0.7032]
[1758840363013,9.483,3899.6,3899.5,0.2283]
[1758840363216,12.99566557,3899.6,3899.5,0.002]
[1758840363519,12.99466557,3899.6,3899.5,0.002]
[1758840363723,10.4303,3899.6,3899.5,0.002]
[1758840364015,12.99466557,3899.6,3899.5,0.002]
[1758840364508,10.4303,3899.6,3899.5,0.002]
[1758840364714,0.5135634,3900.2,3899.5,0.7051]
[1758840364882,2.137,3899.6,3899.5,0.002]
[1758840365083,7.345,3899.6,3899.5,0.002]
[1758840365285,8.2932,3899.6,3899.5,0.002]
[1758840365503,11.64956557,3899.6,3899.5,0.002]
[1758840365691,0.792,3899.2,3899.1,0.02]
[1758840365898,12.84062864,3899.2,3899.1,0.02]
[1758840366091,13.53922864,3899.2,3899.1,0.02]
[1758840366294,15.14960259,3899.2,3899.1,0.02]
[1758840366495,14.90730259,3899.2,3899.1,0.02]
[1758840367206,15.14960259,3899.2,3899.1,0.022]
[1758840367544,3.792,3899.1,3898.1,0.02]
[1758840367683,2.56528654,3898.2,3898.1,0.02]
[1758840367892,15.39944598,3898.2,3898.1,0.02]
[1758840368094,11.15345944,3898.2,3898.1,0.02]
[1758840368305,6.79645944,3898.2,3898.1,0.02]
[1758840368502,5.96296232,3898.2,3898.1,0.02]
[1758840368706,12.45796232,3898.2,3898.1,0.02]
[1758840368988,11.66596232,3898.2,3898.1,0.02]
[1758840369184,6.47771409,3898.2,3898.1,0.02]
[1758840369384,5.68571409,3898.2,3898.1,0.2492]
[1758840369624,12.18771409,3898.2,3898.1,0.7231]
[1758840369926,10.01675177,3898.2,3898.1,0.7231]
[1758840370099,9.502,3898.2,3898.1,0.7231]
[1758840370641,3.0,3898.2,3898.1,0.2492]
[1758840371250,3.0,3898.2,3898.1,3.28845235]
[1758840371407,6.504,3898.2,3898.1,0.7231]
[1758840371930,10.1544,3898.2,3898.1,0.02]
[1758840372592,12.71968654,3898.2,3898.1,0.02]
[1758840373526,10.1544,3898.2,3898.1,0.02]
[1758840373825,2.56573601,3897.6,3897.1,0.02]
[1758840374017,7.367,3897.5,3897.1,0.02]
[1758840374190,2.138,3897.4,3897.1,0.02]
[1758840374396,4.373,3897.3,3897.1,0.02]
[1758840375124,3.0,3897.2,3897.1,0.02]
[1758840375327,2.56555543,3897.8,3897.2,0.7031]
[1758840375622,3.33575554,3897.7,3897.2,0.6531]
[1758840375838,3.0,3897.7,3897.2,0.4739]
[1758840375995,3.0,3897.5,3897.3,0.4739]
[1758840376196,1.2719627,3898.1,3897.3,0.4739]
[1758840376428,0.128,3897.5,3897.3,0.4739]
[1758840376608,7.378,3897.4,3897.3,0.4739]
[1758840377350,7.378,3897.4,3897.3,3.03977894]
[1758840377545,7.378,3897.4,3897.3,0.7031]
[1758840377746,7.378,3897.4,3897.3,3.26897894]
[1758840378213,7.378,3897.4,3897.2,2.56592274]
[1758840378417,7.378,3897.4,3897.3,0.7073]
[1758840379454,4.378,3897.4,3897.3,0.7073]
[1758840379662,4.378,3897.4,3897.3,3.27317894]
[1758840379836,4.378,3897.4,3897.3,0.7073]
[1758840380036,0.40239146,3897.6,3897.4,2.5658131]
[1758840380233,2.138,3897.9,3897.8,2.56554979]
[1758840380547,0.51617566,3898.7,3898.1,2.56532567]
[1758840380732,6.519,3898.6,3898.0,2.56539634]
[1758840380924,2.138,3898.6,3897.9,0.2347]
[1758840381258,4.381,3898.5,3897.9,2.80017434]
[1758840381454,4.381,3898.5,3898.1,2.56530516]
[1758840381750,4.381,3898.5,3898.2,3.27258305]
[1758840381961,2.5645707,3899.3,3898.5,2.56507654]
[1758840382148,1.69583968,3899.4,3898.7,2.56495754]
[1758840382469,6.518,3899.3,3898.9,2.56481921]
[1758840382773,4.381,3899.2,3899.0,0.2347]
[1758840383125,4.381,3899.2,3899.0,2.79945376]
[1758840383324,4.381,3899.2,3899.0,0.2347]
[1758840383958,4.381,3899.2,3899.0,2.56473672]
[1758840384171,3.2463,3899.9,3899.2,2.56462699]
[1758840384327,6.516,3899.8,3899.3,2.79920551]
[1758840384528,3.0,3899.7,3899.4,0.2347]
[1758840384745,4.38,3899.6,3899.5,2.56443115]
[1758840384978,0.52143641,3899.7,3899.6,2.56436557]
[1758840385152,7.03843641,3899.7,3899.6,3.27166557]
[1758840385353,0.52143641,3899.7,3899.6,3.27166557]